bitfinex/quotes_ETHUSD_20240922
["timestamp","ask_amount","ask_price","bid_price","bid_amount"]
[1727043784822,2.4508422,2548.8,2548.7,6.92356]
[1727043785031,2.4508422,2548.8,2548.7,3.0]
[1727043785337,2.4508422,2548.8,2548.4,7.84788]
[1727043785494,2.4508422,2548.8,2548.4,7.84786]
[1727043785704,2.4508422,2548.8,2548.5,3.92386]
[1727043785889,2.4508422,2548.8,2548.4,3.92393]
[1727043786086,6.18305,2548.6,2548.0,3.92454]
[1727043786293,0.15416144,2548.5,2548.2,3.92431]
[1727043786829,0.15416144,2548.5,2548.0,3.92454]
[1727043786988,0.15416144,2548.5,2547.6,3.92515]
[1727043787187,2.2593,2548.1,2547.8,3.92484]
[1727043787420,0.15418067,2548.0,2547.8,3.92484]
[1727043788201,0.15418067,2548.0,2547.8,7.8497]
[1727043788404,0.15418067,2548.0,2547.9,6.9248]
[1727043788666,0.15418067,2548.0,2547.9,3.0]
[1727043790027,0.15418067,2548.0,2547.9,6.9248]
[1727043790211,0.15418067,2548.0,2547.9,3.0]
[1727043790616,0.15418067,2548.0,2547.9,3.692484]
[1727043790818,0.15418067,2548.0,2547.9,3.0]
[1727043791685,0.15418067,2548.0,2547.7,3.0]
[1727043792423,0.15418067,2548.0,2547.5,2.3269]
[1727043792622,0.15418067,2548.0,2547.9,3.9248]
[1727043792959,2.2593,2548.3,2548.0,3.9245]
[1727043794767,2.2593,2548.3,2548.1,3.92449]
[1727043795449,2.2593,2548.3,2548.2,3.92433]
[1727043795766,2.2593,2548.3,2548.2,4.709213]
[1727043795934,2.2593,2548.6,2548.5,6.92387]
[1727043796141,2.2593,2548.6,2548.3,3.0]
[1727043796641,3.92388,2548.5,2547.9,3.92472]
[1727043796844,2.4951,2548.1,2547.9,3.92479]
[1727043797049,2.4951,2548.1,2548.0,6.92464]
[1727043797253,2.4951,2548.1,2547.9,4.68435497]
[1727043797254,2.4951,2548.1,2547.7,3.925]
[1727043797922,2.4951,2548.1,2547.8,3.92492]
[1727043798362,2.4951,2548.1,2547.9,0.07849433]
[1727043798522,2.4951,2548.1,2547.5,3.92538]
[1727043798523,2.4951,2548.1,2548.0,6.92464]
[1727043800533,2.64883832,2548.1,2548.0,6.92464]
[1727043803667,2.64883832,2548.1,2547.8,3.0]
[1727043805553,2.64883832,2548.1,2547.8,6.92486]
[1727043806500,2.64883832,2548.1,2547.7,3.0]
[1727043806706,2.4951,2547.8,2547.2,3.92578]
[1727043806907,2.4951,2547.8,2547.2,0.641018]
[1727043807184,0.15364854,2547.7,2547.6,3.92526]
[1727043807385,2.4951,2548.1,2548.0,3.92464]
[1727043807600,2.64874213,2548.1,2548.0,3.92464]
[1727043807747,0.15364213,2548.1,2548.0,4.709583]
[1727043807952,2.4951,2548.5,2548.1,3.0]
[1727043808147,0.15364213,2548.4,2548.2,3.92431]
[1727043808581,0.15364213,2548.4,2548.1,6.92448]
[1727043808789,0.15364213,2548.4,2548.2,3.92433]
[1727043808997,0.15364213,2548.4,2548.2,3.92426]
[1727043809459,0.15364213,2548.4,2548.3,3.92418]
[1727043809666,0.15364213,2548.4,2548.3,7.47418]
[1727043810078,2.4951,2548.7,2548.6,3.92372]
[1727043810393,0.0376564,2548.8,2548.6,3.92372]
[1727043810394,0.0376564,2548.8,2548.7,7.47356]
[1727043810597,0.0376564,2548.8,2548.7,12.66320505]
[1727043810802,0.0376564,2548.8,2548.7,14.24344375]
[1727043814276,0.0376564,2548.8,2548.7,11.61665251]
[1727043815613,0.0376564,2548.8,2548.7,6.13225251]
[1727043816807,0.0376564,2548.8,2548.7,9.13225251]
[1727043817277,0.0376564,2548.8,2548.7,11.75904375]
[1727043818278,0.0376564,2548.8,2548.7,14.06934375]
[1727043821847,0.0376564,2548.8,2548.7,3.92356]
[1727043822849,0.19315079,2548.8,2548.7,6.62881007]
[1727043823145,0.0376564,2548.8,2548.7,9.41065124]
[1727043823330,0.0376564,2548.8,2548.7,12.41065124]
[1727043823850,0.0376564,2548.8,2548.7,12.90008202]
[1727043824009,0.0376564,2548.8,2548.7,15.40861839]
[1727043824210,0.0376564,2548.8,2548.7,14.91918761]
[1727043824421,0.0376564,2548.8,2548.7,14.22388584]
[1727043828993,0.0376564,2549.6,2549.5,3.92233]
[1727043829190,0.0376564,2549.6,2549.5,7.47233]
[1727043829389,0.0376564,2549.6,2549.5,9.11186912]
[1727043834632,0.0376564,2549.6,2549.5,11.48566912]
[1727043834807,0.0376564,2550.3,2550.2,3.92126]
[1727043835004,0.19368878,2550.3,2550.2,7.47126]
[1727043835203,0.0376564,2550.3,2550.2,7.47126]
[1727043835422,0.0376564,2550.3,2550.2,9.11058412]
[1727043837207,0.19368878,2550.3,2550.2,9.11058412]
[1727043837658,0.0376564,2550.3,2550.2,9.11058412]
[1727043838341,0.0376564,2550.3,2550.2,11.48438412]
[1727043840139,0.0376564,2550.3,2550.2,9.11058412]
[1727043840446,0.0376564,2550.3,2550.2,11.48438412]
[1727043841485,0.005,2550.5,2550.4,3.92095]
[1727043841745,0.005,2550.5,2550.4,13.77467765]
[1727043844318,2.2642,2551.8,2551.7,3.0]
[1727043844520,2.2642,2551.8,2551.3,3.0]
[1727043844835,2.2642,2551.8,2550.7,3.92047]
[1727043844836,3.91905,2551.7,2551.1,3.55]
[1727043845042,3.91905,2551.7,2551.0,3.91992]
[1727043845043,2.2642,2551.4,2551.0,3.0]
[1727043845206,2.42210104,2551.6,2551.4,3.0]
[1727043845647,2.42210104,2551.6,2551.5,3.91926]
[1727043846003,2.2642,2551.6,2551.5,6.91926]
[1727043846412,2.2642,2551.6,2551.3,3.0]
[1727043846615,0.0275792,2551.7,2550.7,3.0]
[1727043846616,3.91934,2551.5,2550.7,3.0]
[1727043846828,2.42210104,2551.4,2551.1,3.0]
[1727043847030,2.42210104,2551.4,2551.1,6.91987]
[1727043847240,2.42210104,2551.4,2551.3,3.0]
[1727043847554,2.42210104,2551.4,2551.2,3.0]
[1727043847843,2.42210104,2551.4,2551.0,6.91999]
[1727043849792,2.42210104,2551.4,2551.2,3.0]
[1727043850091,2.42210104,2551.4,2551.3,6.91957]
[1727043850268,2.42210104,2551.4,2551.3,9.12401536]
[1727043850685,0.15790104,2551.4,2551.3,9.12401536]
[1727043850871,2.2917792,2551.7,2551.6,3.9191]
[1727043851058,2.2917792,2551.7,2551.6,6.9191]
[1727043851254,2.45005125,2551.7,2551.6,6.9191]
[1727043851503,2.45005125,2551.7,2551.6,3.0]
[1727043851645,2.45005125,2551.7,2551.5,3.0]
[1727043852395,2.45005125,2551.7,2551.5,3.91923]
[1727043852590,2.2917792,2551.7,2551.6,3.0]
[1727043852774,2.2917792,2551.7,2551.6,6.9191]
[1727043852775,2.45005125,2551.7,2551.6,6.9191]
[1727043853560,2.45005125,2551.7,2551.6,8.002927]
[1727043853760,2.45005125,2551.7,2551.6,6.9191]
[1727043854344,2.45005125,2551.7,2551.6,3.0]
[1727043854545,2.45005125,2551.7,2551.4,3.0]
[1727043854944,2.45005125,2551.7,2551.4,6.91928]
[1727043855381,2.45005125,2551.7,2551.4,3.0]
[1727043855959,2.45005125,2551.7,2551.1,3.0]
[1727043856292,2.45005125,2551.7,2551.0,3.0]
[1727043856293,3.91943,2551.4,2551.0,3.0]
[1727043856605,2.2642,2551.3,2550.9,3.9201]
[1727043856902,2.42263831,2551.3,2550.9,3.9201]
[1727043857200,2.42263831,2551.3,2551.0,3.91999]
[1727043857517,2.42263831,2551.3,2550.3,2.2587]
[1727043857518,3.91987,2551.1,2550.1,3.92134]
[1727043857659,2.3751,2550.9,2549.9,3.92164]
[1727043857869,2.62679124,2551.0,2550.0,3.92145]
[1727043857870,2.3751,2550.5,2550.0,3.92145]
[1727043858213,3.92106,2550.4,2549.5,2.3187]
[1727043858387,2.3751,2550.5,2549.9,3.92163]
[1727043858698,2.3751,2550.5,2550.3,3.92107]
[1727043859016,6.29538,2550.9,2550.3,7.84209]
[1727043859385,6.29538,2550.9,2550.4,3.0]
[1727043859901,3.92036,2550.8,2550.2,3.0]
[1727043860119,2.3751,2550.7,2550.2,3.0]
[1727043860260,2.3751,2550.7,2550.4,3.0]
[1727043860979,0.15773467,2550.6,2550.4,3.0]
[1727043861504,2.3751,2550.5,2550.2,3.0]
[1727043861703,6.29597,2550.5,2550.0,3.0]
[1727043862067,0.15773467,2550.4,2550.0,6.92156]
[1727043862291,0.15773467,2550.4,2550.2,3.92118]
[1727043862688,2.3751,2550.5,2550.4,3.92095]
[1727043863720,2.3751,2550.5,2550.2,3.92118]
[1727043863881,2.3751,2550.5,2550.2,7.84233]
[1727043864111,6.29603,2550.5,2550.2,3.0]
[1727043864315,3.92097,2550.4,2549.9,6.92164]
[1727043864529,2.3751,2550.3,2549.9,6.92164]
[1727043865540,2.3751,2550.3,2549.9,3.0]
[1727043865711,6.29631,2550.3,2549.9,3.0]
[1727043865917,3.92097,2550.4,2549.6,3.92206]
[1727043865918,2.3751,2550.0,2549.6,3.92206]
[1727043866644,2.3751,2550.0,2549.6,7.84412]
[1727043866826,2.3751,2550.0,2549.6,7.84416]
[1727043867137,2.3751,2550.0,2549.7,3.92201]
[1727043867434,2.3751,2550.0,2549.7,3.0]
[1727043867651,2.3751,2550.0,2549.7,6.92199]
[1727043868675,2.3751,2550.0,2549.7,3.0]
[1727043868973,2.3751,2550.0,2549.7,6.92202]
[1727043869748,2.3751,2550.0,2549.7,3.0]
[1727043870277,2.3751,2550.0,2549.7,6.92197]
[1727043870485,2.3751,2550.0,2549.7,3.0]
[1727043872363,3.92174,2549.9,2549.7,3.0]
[1727043872679,2.3751,2550.0,2549.3,0.0113432]
[1727043872680,2.3764,2549.8,2549.3,0.0113432]
[1727043872884,3.92249,2549.4,2549.3,0.0113432]
[1727043873062,3.92226,2549.6,2549.3,0.0113432]
[1727043873390,2.62679124,2549.8,2549.3,0.0113432]
[1727043873391,2.3764,2549.5,2549.3,0.0113432]
[1727043873532,2.3764,2549.5,2549.3,3.9339832]
[1727043873875,2.3764,2549.9,2549.5,3.92228]
[1727043874278,2.3764,2549.9,2549.7,3.92193]
[1727043874450,2.3764,2549.9,2549.8,3.0]
[1727043874662,2.3764,2549.9,2549.5,7.70781132]
[1727043875280,2.3764,2549.9,2549.6,3.92217]
[1727043875505,2.3764,2549.9,2549.5,7.70794132]
[1727043875798,0.15605158,2549.8,2549.5,6.92233]
[1727043876281,0.15605158,2549.8,2549.5,3.0]
[1727043876573,0.15605158,2549.8,2549.3,0.0113432]
[1727043876574,2.3764,2549.4,2549.3,0.0113432]
[1727043876982,2.5324836,2549.4,2549.3,0.0113432]
[1727043878746,6.4549736,2549.4,2549.3,0.0113432]
[1727043878943,2.5324836,2549.4,2549.3,0.0113432]
[1727043882091,6.4549736,2549.4,2549.3,0.0113432]
[1727043883271,2.5324836,2549.4,2549.3,0.0113432]
[1727043883468,0.1560836,2549.4,2549.3,0.0113432]
[1727043883720,6.29843,2549.7,2549.3,0.0113432]
[1727043883893,3.92226,2549.6,2549.3,0.0113432]
[1727043884073,0.15539832,2549.6,2549.3,0.0113432]
[1727043884274,0.15539832,2549.6,2549.3,3.0113432]
[1727043885105,0.15539832,2549.6,2549.3,6.9339732]
[1727043885474,0.15539832,2549.6,2549.5,3.0]
[1727043885707,0.15539832,2549.6,2549.5,6.92233]
[1727043886221,0.15544316,2549.6,2549.5,6.92233]
[1727043886572,2.3764,2549.9,2549.5,6.92233]
[1727043886884,6.29812,2549.9,2549.5,3.0]
[1727043887070,0.15544316,2549.8,2549.5,3.0]
[1727043887934,4.07732316,2549.8,2549.5,3.0]
[1727043888085,4.07732316,2549.8,2549.3,5.01962252]
[1727043888086,4.07732316,2549.8,2549.4,3.0]
[1727043888295,0.15544316,2549.8,2549.4,3.0]
[1727043888526,0.15544316,2549.8,2549.6,3.0]
[1727043890712,0.15544316,2549.8,2549.4,3.0]
[1727043890920,0.15544316,2549.8,2549.4,6.92236]
[1727043891084,0.15544316,2549.8,2549.5,3.92233]
[1727043891420,0.15544316,2549.8,2549.6,3.0]
[1727043892516,0.15544316,2549.8,2549.6,6.92209]
[1727043892678,0.15544316,2549.8,2549.6,8.006524]
[1727043892880,0.15544316,2549.8,2549.7,6.92203]
[1727043893103,6.41564,2550.3,2549.8,6.92185]
[1727043893278,2.4945,2550.3,2549.9,3.92164]
[1727043894519,3.92131,2550.2,2549.7,5.4494]
[1727043895021,10.33685,2550.3,2549.9,3.0]
[1727043895384,6.41561,2550.3,2549.9,3.0]
[1727043895877,10.33684,2550.3,2549.9,3.0]
[1727043896936,6.41561,2550.3,2549.9,3.0]
[1727043897778,10.33681,2550.3,2549.9,3.0]
[1727043898005,6.41561,2550.3,2549.9,3.0]
[1727043898421,10.3368,2550.3,2549.9,3.0]
[1727043898581,6.41561,2550.3,2549.9,3.0]
[1727043898924,10.33684,2550.3,2549.9,3.0]
[1727043899218,6.41561,2550.3,2549.9,3.0]
[1727043899522,10.33683,2550.3,2549.9,3.0]
[1727043899883,10.3368,2550.3,2549.9,3.0]
[1727043900086,6.41561,2550.3,2549.9,3.0]
[1727043900315,10.3368,2550.3,2549.9,3.0]
[1727043900524,2.4945,2550.3,2549.7,3.0]
[1727043900740,2.4945,2550.3,2549.5,2.4494]
[1727043900741,3.92158,2550.0,2549.5,2.4494]
[1727043900884,3.92174,2549.9,2549.4,3.92237]
[1727043901080,6.41624,2549.9,2549.4,3.92237]
[1727043901518,3.92212,2549.7,2549.3,2.4607432]
[1727043901721,3.92199,2549.8,2549.3,0.0113432]
[1727043901890,2.4945,2549.9,2549.3,0.0113432]
[1727043902091,2.4945,2549.9,2549.5,3.9223]
[1727043902292,3.92167,2550.0,2549.6,6.37157]
[1727043902699,3.92167,2550.0,2549.6,2.4494]
[1727043902700,7.84333,2550.0,2549.6,2.4494]
[1727043902936,0.7907716,2550.1,2549.6,2.4494]
[1727043903110,7.2066016,2550.2,2549.6,2.4494]
[1727043903307,6.3389984,2550.1,2549.6,2.4494]
[1727043903618,4.7121916,2550.1,2549.5,6.92232]
[1727043903993,4.7121916,2550.1,2549.6,3.92217]
[1727043904190,0.65079102,2550.0,2549.6,3.92217]
[1727043904918,1.62714925,2550.0,2549.6,3.92217]
[1727043905102,4.7121916,2550.1,2549.6,3.92217]
[1727043905306,0.65090329,2550.0,2549.6,3.92217]
[1727043905535,0.15596193,2549.9,2549.6,3.92217]
[1727043905839,0.15596193,2549.9,2549.8,3.92187]
[1727043906015,0.15596193,2549.9,2549.8,7.00029883]
[1727043906217,0.7907716,2550.3,2550.0,3.9215]
[1727043906556,0.7907716,2550.3,2549.8,7.00029883]
[1727043906557,2.41816317,2550.3,2549.8,6.92187]
[1727043906856,6.33934317,2550.3,2549.8,10.84366]
[1727043907065,0.65095663,2550.2,2549.9,3.92171]
[1727043907218,3.92126,2550.2,2549.8,6.92186]
[1727043907559,4.7120316,2550.2,2549.8,6.92186]
[1727043907729,3.92143,2550.1,2549.7,3.0]
[1727043909340,4.7122016,2550.1,2549.7,3.0]
[1727043909853,4.7120316,2550.2,2549.7,3.0]
[1727043910059,2.4182243,2550.1,2549.7,3.692206]
[1727043910229,2.4182243,2550.1,2549.8,3.92187]
[1727043910419,0.65113359,2550.0,2549.8,3.92187]
[1727043910621,0.7907716,2550.1,2549.8,3.92187]
[1727043910934,0.65113653,2550.0,2549.7,7.614226]
[1727043911254,0.7907716,2550.1,2549.8,0.7614226]
[1727043911418,2.41874125,2550.1,2549.8,0.7614226]
[1727043911758,2.41874125,2550.0,2549.7,6.92202]
[1727043911945,0.65117649,2549.9,2549.5,3.9222]
[1727043912143,0.65117649,2549.9,2549.6,3.0]
[1727043912528,3.9221,2549.7,2549.2,2.3115]
[1727043912718,3.07665416,2549.6,2549.1,0.0250712]
[1727043912925,3.92256,2549.4,2549.1,0.0250712]
[1727043913357,4.7133316,2549.4,2549.1,0.0250712]
[1727043913730,3.92279,2549.2,2549.1,0.0250712]
[1727043913957,6.99927407,2549.2,2549.1,0.0250712]
[1727043914193,8.76635276,2549.2,2549.1,0.0250712]
[1727043914329,4.05279116,2549.2,2549.1,0.0250712]
[1727043914527,4.86137912,2549.2,2549.1,0.0250712]
[1727043915369,0.65088407,2549.2,2549.1,0.0250712]
[1727043915535,0.80858796,2549.4,2549.1,0.0250712]
[1727043915736,2.43503159,2549.4,2549.1,0.0250712]
[1727043916035,0.65057266,2549.3,2549.1,0.0250712]
[1727043916232,0.80858796,2549.4,2549.1,0.0250712]
[1727043916467,2.4256,2549.3,2549.1,0.0250712]
[1727043917027,0.65051039,2549.2,2549.1,0.0250712]
[1727043917224,6.35760466,2549.2,2549.1,0.0250712]
[1727043917471,5.5490167,2549.2,2549.1,0.0250712]
[1727043917660,6.35712665,2549.2,2549.1,0.0250712]
[1727043918327,5.5490167,2549.2,2549.1,0.0250712]
[1727043918527,6.7351741,2549.2,2549.1,0.0250712]
[1727043919163,9.1624741,2549.2,2549.1,0.0250712]
[1727043919459,8.78276422,2549.2,2549.1,0.0250712]
[1727043919661,7.80779496,2549.2,2549.1,0.0250712]
[1727043919862,8.78261064,2549.2,2549.1,0.0250712]
[1727043920371,11.78783383,2549.2,2549.1,0.0250712]
[1727043920553,8.93770339,2549.2,2549.1,0.0250712]
[1727043921771,7.15558304,2549.2,2549.1,0.0250712]
[1727043922129,7.15518081,2549.2,2549.1,0.0250712]
[1727043922439,8.12934344,2549.2,2549.1,0.0250712]
[1727043922642,7.15518081,2549.2,2549.1,0.0250712]
[1727043922885,7.15505338,2549.2,2549.1,0.0250712]
[1727043923032,0.15551353,2549.2,2549.1,0.0250712]
[1727043923428,3.92279,2549.2,2549.1,0.0250712]
[1727043923638,0.15551353,2549.2,2549.1,0.0250712]
[1727043924169,4.07830353,2549.2,2549.1,0.0250712]
[1727043924417,6.50560353,2549.2,2549.1,0.0250712]
[1727043925110,8.93625517,2549.2,2549.1,0.0250712]
[1727043925481,9.3151079,2549.2,2549.1,0.0250712]
[1727043926009,9.42731183,2549.2,2549.1,0.0250712]
[1727043926194,11.44475702,2549.2,2549.1,0.00067219]
[1727043926404,11.99475702,2549.2,2549.1,0.00067219]
[1727043926604,9.97731183,2549.2,2549.1,0.00067219]
[1727043926907,11.04006828,2549.2,2549.1,0.00067219]
[1727043927123,9.33863472,2549.2,2549.1,0.00067219]
[1727043927976,8.1289505,2549.2,2549.1,0.00067219]
[1727043928183,11.03912759,2549.2,2549.1,0.00067219]
[1727043928415,9.42470119,2549.2,2549.1,0.00067219]
[1727043928923,11.03745764,2549.2,2549.1,0.00067219]
[1727043929426,9.33581125,2549.2,2549.1,0.00067219]
[1727043929782,11.03664001,2549.2,2549.1,0.00067219]
[1727043930276,9.42388356,2549.2,2549.1,0.00067219]
[1727043930489,9.33556975,2549.2,2549.1,0.00067219]
[1727043930877,8.12728055,2549.2,2549.1,0.00067219]
[1727043931095,11.03625068,2549.2,2549.1,0.00067219]
[1727043931423,11.58385016,2549.2,2549.1,0.00067219]
[1727043931579,11.98895358,2549.2,2548.3,0.0373416]
[1727043931785,3.92403,2548.4,2548.3,0.0373416]
[1727043932211,0.15441146,2548.4,2548.3,0.0373416]
[1727043932824,3.92373,2548.6,2548.3,0.0373416]
[1727043933121,4.99879124,2548.8,2548.3,0.0373416]
[1727043933122,2.372,2548.8,2548.3,0.0373416]
[1727043933418,4.07807146,2548.7,2548.4,2.257]
[1727043933805,0.15441146,2548.7,2548.4,2.257]
[1727043934193,3.92342,2548.8,2548.4,2.257]
[1727043934396,0.15441146,2548.6,2548.4,2.257]
[1727043934614,3.92342,2548.8,2548.4,2.257]
[1727043934816,0.15441146,2548.5,2548.3,0.0373416]
[1727043935135,0.15441146,2548.4,2548.3,0.0373416]
[1727043935498,3.9238,2548.6,2548.3,0.0373416]
[1727043935686,0.15441146,2548.5,2548.3,0.0373416]
[1727043935927,4.07843146,2548.5,2548.3,0.0373416]
[1727043936412,6.29603,2548.4,2548.3,0.0373416]
[1727043936983,6.94311829,2548.4,2548.3,0.0373416]
[1727043937189,7.09752975,2548.4,2548.3,0.0373416]
[1727043937421,6.45044146,2548.4,2548.3,0.0373416]
[1727043937749,6.45044146,2548.4,2547.5,0.0373416]
[1727043937750,7.85011,2547.8,2547.5,0.0373416]
[1727043937886,3.92505,2547.8,2547.5,0.0373416]
[1727043938212,0.1533856,2547.7,2547.5,0.0373416]
[1727043938600,6.29682,2547.9,2547.5,0.0373416]
[1727043938803,0.15326371,2547.6,2547.5,0.0373416]
[1727043938984,6.29682,2547.9,2547.5,0.0373416]
[1727043938985,3.92498,2547.8,2547.5,0.0373416]
[1727043939190,0.15326371,2547.6,2547.5,0.0373416]
[1727043939432,3.92498,2547.8,2547.5,0.0373416]
[1727043939769,3.92521,2547.7,2547.5,0.0373416]
[1727043939920,4.07843521,2547.7,2547.5,0.0373416]
[1727043940624,0.15322521,2547.7,2547.5,0.0373416]
[1727043940830,7.85006,2547.8,2547.5,0.0373416]
[1727043941126,7.85008,2547.8,2547.5,0.0373416]
[1727043941431,0.15322521,2547.7,2547.5,0.0373416]
[1727043941940,3.92475,2548.0,2547.5,3.9627116]
[1727043941941,0.15322521,2547.6,2547.5,3.9627116]
[1727043942145,2.372,2548.1,2547.8,3.92493]
[1727043942328,0.15319955,2548.0,2547.8,3.92493]
[1727043942527,3.92434,2548.2,2547.8,3.92493]
[1727043942730,0.15319955,2548.1,2547.8,3.92493]
[1727043943227,0.15319955,2548.1,2547.8,3.92487]
[1727043943471,0.15319955,2548.1,2547.8,4.935573]
[1727043943626,6.29626,2548.3,2547.8,4.935573]
[1727043943973,3.92428,2548.3,2547.8,8.860453]
[1727043944173,0.15319955,2548.2,2547.8,4.935573]
[1727043944329,0.15319955,2548.2,2547.8,4.935563]
[1727043944527,3.92428,2548.3,2547.8,4.935563]
[1727043944730,0.15319955,2548.2,2547.8,4.935563]
[1727043945032,3.92428,2548.3,2547.8,8.860433]
[1727043945232,0.15319955,2548.1,2547.8,4.935563]
[1727043945436,3.92358,2548.7,2548.2,3.92425]
[1727043945736,4.99879124,2548.8,2547.9,0.4935563]
[1727043945737,2.62679124,2549.2,2548.4,2.257]
[1727043945954,6.2948,2549.2,2548.7,3.92348]
[1727043946285,3.92274,2549.3,2548.8,3.92338]
[1727043946502,3.9228,2549.2,2548.7,3.92348]
[1727043946984,3.92295,2549.1,2548.5,7.84749]
[1727043947164,3.92274,2549.3,2548.6,3.9237]
[1727043947334,3.92274,2549.3,2548.8,6.35721]
[1727043948236,4.99879124,2549.4,2548.8,6.35721]
[1727043948532,2.372,2549.4,2548.8,6.35721]
[1727043948767,3.92244,2549.5,2549.0,3.92302]
[1727043949153,3.92244,2549.5,2548.8,6.35726]
[1727043949154,3.92249,2549.4,2548.8,10.28057]
[1727043949336,3.92249,2549.4,2548.9,3.92325]
[1727043950436,3.92264,2549.3,2548.8,6.35721]
[1727043950636,3.92326,2548.9,2548.5,5.4339]
[1727043950876,3.92326,2548.9,2548.5,2.4339]
[1727043951371,0.15319955,2548.8,2548.5,2.4339]
[1727043951787,4.07663955,2548.8,2548.3,3.92416]
[1727043952091,4.07663955,2548.8,2547.9,0.4935563]
[1727043952092,3.9238,2548.6,2548.0,3.92455]
[1727043952238,3.9238,2548.6,2548.0,7.84909]
[1727043952585,3.92364,2548.7,2548.1,2.4339]
[1727043952586,0.15408456,2548.5,2548.1,2.4339]
[1727043952808,3.92364,2548.7,2548.2,3.92432]
[1727043953078,0.15397557,2548.4,2548.2,3.92432]
[1727043953240,3.92364,2548.7,2548.2,3.92432]
[1727043953453,0.15397557,2548.3,2548.2,3.92432]
[1727043953976,3.92364,2548.7,2548.1,2.4339]
[1727043953977,3.92342,2548.8,2548.3,3.92416]
[1727043954277,7.8467,2548.9,2548.3,3.92408]
[1727043954654,3.92342,2548.8,2548.3,3.92408]
[1727043955177,7.84669,2548.9,2548.4,3.92401]
[1727043955390,3.92334,2548.9,2548.4,3.92401]
[1727043956049,3.92304,2549.1,2548.6,6.35759]
[1727043956257,3.92273,2549.3,2548.6,6.35752]
[1727043956581,3.92273,2549.3,2548.8,3.92333]
[1727043957386,3.92273,2549.3,2548.7,3.92356]
[1727043957949,3.09728476,2549.4,2548.7,3.92356]
[1727043957950,3.92281,2549.2,2548.7,3.92356]
[1727043959355,7.01982476,2549.4,2548.8,3.9234]
[1727043959356,3.92265,2549.3,2548.8,3.9234]
[1727043959540,3.09728476,2549.4,2548.9,3.92314]
[1727043959859,3.92203,2549.7,2549.3,2.4339]
[1727043960076,8.64910476,2549.8,2549.3,2.4339]
[1727043960388,0.64910721,2549.7,2549.3,2.4339]
[1727043960677,0.80518476,2549.9,2549.3,5.4339]
[1727043960843,3.92188,2549.8,2549.3,5.4339]
[1727043961046,3.92188,2549.8,2549.3,9.35645]
[1727043961388,7.353726,2549.9,2549.3,6.35651]
[1727043961693,8.64851476,2550.0,2549.4,3.92234]
[1727043961890,4.72681476,2550.0,2549.4,3.92234]
[1727043962047,4.72681476,2550.0,2549.5,3.92227]
[1727043962245,3.92163,2550.0,2549.5,3.92227]
[1727043963045,3.92163,2550.0,2549.5,3.92233]
[1727043963771,7.84329,2550.0,2549.4,3.92234]
[1727043964292,0.80518476,2550.1,2549.6,3.92214]
[1727043964447,0.80518476,2550.2,2549.7,2.4391]
[1727043964744,7.47411714,2550.4,2549.8,3.92173]
[1727043964745,7.07152476,2550.4,2549.8,3.92173]
[1727043964949,7.07152476,2550.4,2549.9,3.92161]
[1727043965145,6.26634,2550.4,2549.9,3.92161]
[1727043965384,3.92104,2550.4,2549.9,3.92161]
[1727043965685,0.15510361,2550.3,2549.7,6.36098]
[1727043965847,3.92127,2550.2,2549.7,5.4391]
[1727043966045,3.92143,2550.1,2549.7,5.4391]
[1727043966242,0.15514205,2550.1,2549.7,5.4391]
[1727043966478,4.07659205,2550.1,2549.7,5.4391]
[1727043966652,4.07659205,2550.1,2549.0,2.62679124]
[1727043966653,2.62679124,2549.9,2549.0,2.4391]
[1727043966980,0.15518049,2549.8,2549.5,3.92233]
[1727043967182,3.92165,2550.0,2549.5,3.92233]
[1727043967390,0.15518049,2549.7,2549.5,3.92233]
[1727043967590,3.92165,2550.0,2549.5,3.92233]
[1727043967894,0.15518049,2549.6,2549.5,3.92233]
[1727043968046,3.92165,2550.0,2549.5,3.92233]
[1727043968247,0.15518049,2549.6,2549.5,3.92233]
[1727043968447,3.92165,2550.0,2549.3,6.36164]
[1727043968643,0.15518049,2549.6,2549.3,2.4391]
[1727043968948,4.07753439,2549.5,2549.0,2.4391]
[1727043969143,3.92295,2549.1,2548.6,2.4391]
[1727043969444,0.15507158,2549.0,2548.8,3.92338]
[1727043969645,3.92224,2549.6,2548.9,4.00172636]
[1727043969883,3.92224,2549.6,2549.0,2.4391]
[1727043970092,3.92224,2549.6,2549.0,6.36211]
[1727043970276,6.26728,2549.8,2549.2,3.92278]
[1727043970588,3.92204,2549.7,2549.1,3.0]
[1727043971062,3.92236,2549.5,2549.1,3.0]
[1727043971244,3.92236,2549.5,2549.0,5.4391]
[1727043971446,7.84484,2549.5,2549.0,5.4391]
[1727043971679,3.9226,2549.4,2549.0,2.4391]
[1727043972155,3.92225,2549.6,2549.0,3.92301]
[1727043972457,3.92225,2549.6,2549.0,3.923]
[1727043972657,3.92225,2549.6,2549.1,3.92281]
[1727043972866,6.26727,2549.8,2549.2,3.92267]
[1727043973201,3.92204,2549.7,2549.3,2.4391]
[1727043973404,4.97209124,2550.0,2549.3,6.36167]
[1727043973720,3.92196,2549.8,2549.3,2.4391]
[1727043974008,3.92204,2549.7,2549.3,2.4391]
[1727043974552,7.84395,2549.8,2549.3,2.4391]
[1727043974758,3.92203,2549.7,2549.3,2.4391]
[1727043974994,3.92218,2549.6,2549.3,2.4391]
[1727043975295,3.92203,2549.7,2549.3,2.4391]
[1727043976015,3.92249,2549.4,2549.1,2.4391]
[1727043976561,3.92228,2549.6,2549.1,2.4391]
[1727043976998,3.92228,2549.6,2549.1,6.36202]
[1727043977381,3.92228,2549.6,2549.2,3.92279]
[1727043977582,7.84455,2549.6,2549.1,6.36202]
[1727043978084,3.92227,2549.6,2549.1,6.36197]
[1727043978459,6.54877124,2549.8,2549.1,6.36197]
[1727043978659,6.26698,2550.0,2549.5,3.92232]
[1727043978859,3.92168,2550.0,2549.5,3.92232]
[1727043979060,3.92172,2549.9,2549.4,3.92248]
[1727043979296,3.92168,2550.0,2549.5,3.9222]
[1727043979471,3.92168,2550.0,2549.6,3.92216]
[1727043979673,3.92115,2550.3,2549.7,3.0]